fUST/lending_fUST_20240927
["ID","MTS","AMOUNT","RATE_DAILY","PERIOD"]
[339286878,1727439042222,-172.582341,0.0001998,2]
[339286880,1727439042232,-151.0,0.0001998,2]
[339286882,1727439042241,-151.0,0.0001998,2]
[339286884,1727439042250,-194.523868,0.0001998,2]
[339286886,1727439042259,-194.523868,0.0001998,2]
[339286887,1727439042268,-291.916776,0.0001998,2]
[339286889,1727439042278,-291.916776,0.0001998,2]
[339286892,1727439042290,-158.831207,0.0001998,2]
[339286894,1727439042299,-158.831207,0.0001998,2]
[339286896,1727439042308,-181.831058,0.0001998,2]
[339286898,1727439042318,-181.831058,0.0001998,2]
[339286900,1727439042327,-859.198566,0.0001998,2]
[339286902,1727439042337,-859.198566,0.0001998,2]
[339286904,1727439042346,-153.99012,0.0001999,2]
[339286906,1727439042355,-151.0,0.0001999,2]
[339286907,1727439042364,-151.0,0.0002,2]
[339286909,1727439042373,-691.89,0.0002,2]
[339286911,1727439042383,-752.32,0.0002,2]
[339286913,1727439042392,-842.93,0.0002,2]
[339286916,1727439042401,-500.0,0.0002,2]
[339286918,1727439042410,-500.0,0.0002,2]
[339286921,1727439042420,-500.0,0.0002,2]
[339286923,1727439042429,-1303.73,0.0002,2]
[339286925,1727439042438,-500.0,0.0002,2]
[339286927,1727439042448,-1525.07,0.0002,2]
[339286929,1727439042457,-500.0,0.0002,2]
[339286932,1727439042466,-500.0,0.0002,2]
[339286934,1727439042477,-200.0,0.0002,2]
[339286936,1727439042488,-949.71,0.0002,2]
[339286938,1727439042497,-2111.72,0.0002,2]
[339286940,1727439042507,-811.11,0.0002,2]
[339286942,1727439042516,-176.2898464,0.0002,2]
[339286944,1727439042527,-500.0,0.0002,2]
[339286946,1727439042537,-500.0,0.0002,2]
[339286948,1727439042546,-500.0,0.0002,2]
[339286950,1727439042557,-500.0,0.0002,2]
[339286952,1727439042566,-1388.27,0.0002,2]
[339286954,1727439042575,-500.0,0.0002,2]
[339286956,1727439042584,-13006.57,0.0002,2]
[339286958,1727439042593,-367.50169955,0.00020021,2]
[339286960,1727439042603,-609.73991382,0.00020217,3]
[339286962,1727439042612,-2500.0,0.00020265,2]
[339286964,1727439042621,-691.89,0.00020273,2]
[339286966,1727439042630,-752.32,0.00020273,2]
[339286968,1727439042640,-842.93,0.00020273,2]
[339286970,1727439042649,-500.0,0.00020273,2]
[339286972,1727439042658,-500.0,0.00020273,2]
[339286974,1727439042667,-500.0,0.00020273,2]
[339286976,1727439042677,-1303.73,0.00020273,2]
[339286978,1727439042686,-500.0,0.00020273,2]
[339286980,1727439042695,-1525.07,0.00020273,2]
[339286981,1727439042704,-500.0,0.00020273,2]
[339286982,1727439042714,-500.0,0.00020273,2]
[339286983,1727439042723,-200.0,0.00020273,2]
[339286984,1727439042732,-949.71,0.00020273,2]
[339286985,1727439042741,-2111.72,0.00020273,2]
[339286986,1727439042750,-811.11,0.00020273,2]
[339286987,1727439042760,-151.0,0.00020273,2]
[339286988,1727439042769,-166.913554,0.00020273,2]
[339286989,1727439042778,-166.913554,0.00020273,2]
[339286990,1727439042789,-318.64864345,0.00020273,2]
[339286991,1727439042799,-500.0,0.00020273,2]
[339286992,1727439042809,-1975.933074,0.00020273,2]
[339286993,1727439042818,-500.0,0.00020273,2]
[339286994,1727439042827,-1975.933074,0.00020273,2]
[339286995,1727439042838,-500.0,0.00020273,2]
[339286996,1727439042848,-151.445429,0.00020273,2]
[339286997,1727439042857,-151.445429,0.00020273,2]
[339286998,1727439042866,-1388.27,0.00020273,2]
[339287000,1727439042876,-500.0,0.00020273,2]
[339287001,1727439042885,-333.704206,0.00020273,2]
[339287003,1727439042894,-333.704206,0.00020273,2]
[339287005,1727439042904,-13006.57,0.00020273,2]
[339287007,1727439042914,-3000.0,0.00020277,2]
[339287009,1727439042923,-151.0,0.00020377,2]
[339287011,1727439042934,-465.08280313,0.00020506,2]
[339287013,1727439042944,-1000.0,0.00020521,2]
[339287015,1727439042953,-1000.83854048,0.00020521,2]
[339287017,1727439042963,-286.854387,0.00020537,2]
[339287019,1727439042973,-151.0,0.00020537,2]
[339287021,1727439042982,-151.0,0.00020537,2]
[339287023,1727439042991,-151.0,0.00020537,2]
[339287025,1727439043001,-151.0,0.00020537,2]
[339287027,1727439043010,-151.0,0.00020537,2]
[339287029,1727439043019,-151.0,0.00020537,2]
[339287030,1727439043028,-151.0,0.00020537,2]
[339287032,1727439043042,-151.0,0.00020537,2]
[339287035,1727439043052,-151.0,0.00020537,2]
[339287036,1727439043061,-151.0,0.00020537,2]
[339287038,1727439043071,-691.89,0.00020547,2]
[339287040,1727439043080,-752.32,0.00020547,2]
[339287042,1727439043089,-842.93,0.00020547,2]
[339287044,1727439043099,-500.0,0.00020547,2]
[339287059,1727439043227,-500.0,0.00020547,2]
[339287061,1727439043237,-500.0,0.00020547,2]
[339287063,1727439043247,-1303.73,0.00020547,2]
[339287065,1727439043257,-500.0,0.00020547,2]
[339287067,1727439043267,-1525.07,0.00020547,2]
[339287069,1727439043276,-500.0,0.00020547,2]
[339287071,1727439043288,-500.0,0.00020547,2]
[339287073,1727439043298,-200.0,0.00020547,2]
[339287075,1727439043307,-949.71,0.00020547,2]
[339287077,1727439043316,-2111.72,0.00020547,2]
[339287079,1727439043324,-811.11,0.00020547,2]
[339287081,1727439043334,-500.0,0.00020547,2]
[339287083,1727439043343,-274.95150293,0.00020547,2]
[339287085,1727439043352,-500.0,0.00020547,2]
[339287087,1727439043361,-1388.27,0.00020547,2]
[339287089,1727439043371,-500.0,0.00020547,2]
[339287090,1727439043380,-2531.81742506,0.00020547,2]
[339287093,1727439043394,-679.40527399,0.00020547,2]
[339287096,1727439043417,-9795.34730095,0.00020547,2]
[339287098,1727439043426,-153.424126,0.00020548,2]
[339287100,1727439043435,-153.0,0.00020548,2]
[339287102,1727439043446,-209.1919512,0.00020685,2]
[339287104,1727439043455,-209.1919512,0.00020685,2]
[339287106,1727439043465,-209.1919512,0.00020685,2]
[339287108,1727439043474,-209.1919512,0.00020685,2]
[339287110,1727439043487,-209.1919512,0.00020685,2]
[339287112,1727439043497,-153.0,0.00020685,2]
[339287114,1727439043506,-153.0,0.00020685,2]
[339287116,1727439043516,-209.1919512,0.00020685,2]
[339287118,1727439043526,-153.0,0.00020685,2]
[339287120,1727439043538,-153.0,0.00020685,2]
[339287122,1727439043548,-209.1919512,0.00020685,2]
[339287124,1727439043558,-153.0,0.00020685,2]
[339287126,1727439043567,-153.0,0.00020685,2]
[339287128,1727439043577,-209.1919512,0.00020685,2]
[339287130,1727439043586,-153.0,0.00020685,2]
[339287132,1727439043596,-418.2352449,0.00020685,2]
[339287134,1727439043606,-153.0,0.00020685,2]
[339287136,1727439043615,-153.0,0.00020685,2]
[339287138,1727439043625,-209.1919512,0.00020685,2]
[339287140,1727439043634,-153.0,0.00020685,2]
[339287142,1727439043643,-209.1919512,0.00020685,2]
[339287144,1727439043653,-153.0,0.00020685,2]
[339287146,1727439043663,-418.329369,0.00020685,2]
[339287148,1727439043672,-153.0,0.00020685,2]
[339287150,1727439043681,-209.1919512,0.00020685,2]
[339287152,1727439043691,-209.1919512,0.00020685,2]
[339287154,1727439043700,-150.0,0.00020688,2]
[339287156,1727439043710,-153.0,0.00020795,2]
[339287158,1727439043719,-168.942618,0.000208,5]
[339287160,1727439043729,-6531.54368294,0.00020816,2]
[339287162,1727439043739,-691.89,0.00020821,2]
[339287164,1727439043749,-752.32,0.00020821,2]
[339287166,1727439043758,-842.93,0.00020821,2]
[339287168,1727439043767,-500.0,0.00020821,2]
[339287170,1727439043776,-500.0,0.00020821,2]
[339287172,1727439043787,-500.0,0.00020821,2]
[339287174,1727439043798,-1303.73,0.00020821,2]
[339287176,1727439043807,-500.0,0.00020821,2]
[339287178,1727439043817,-1525.07,0.00020821,2]
[339287180,1727439043826,-500.0,0.00020821,2]
[339287182,1727439043835,-211.665211,0.00020821,2]
[339287184,1727439043844,-310.816321,0.00020821,2]
[339287186,1727439043854,-211.665211,0.00020821,2]
[339287188,1727439043863,-310.816321,0.00020821,2]
[339287190,1727439043873,-500.0,0.00020821,2]
[339287192,1727439043883,-200.0,0.00020821,2]
[339287194,1727439043893,-151.0,0.00020821,2]
[339287196,1727439043902,-172.582341,0.00020821,2]
[339287198,1727439043911,-172.582341,0.00020821,2]
[339287200,1727439043922,-949.71,0.00020821,2]
[339287202,1727439043931,-151.0,0.00020821,2]
[339287204,1727439043940,-151.0,0.00020821,2]
[339287206,1727439043950,-194.523868,0.00020821,2]
[339287208,1727439043959,-194.523868,0.00020821,2]
[339287210,1727439043969,-291.916776,0.00020821,2]
[339287212,1727439043978,-291.916776,0.00020821,2]
[339287214,1727439043987,-2111.72,0.00020821,2]
[339287216,1727439043998,-811.11,0.00020821,2]
[339287218,1727439044008,-158.831207,0.00020821,2]
[339287220,1727439044018,-158.831207,0.00020821,2]
[339287222,1727439044028,-181.831058,0.00020821,2]
[339287224,1727439044039,-181.831058,0.00020821,2]
[339287226,1727439044048,-500.0,0.00020821,2]
[339287228,1727439044059,-500.0,0.00020821,2]
[339287230,1727439044068,-859.198566,0.00020821,2]
[339287232,1727439044078,-859.198566,0.00020821,2]
[339287234,1727439044088,-1388.27,0.00020821,2]
[339287236,1727439044098,-500.0,0.00020821,2]
[339287238,1727439044107,-13006.57,0.00020821,2]
[339287240,1727439044117,-150.0,0.00020886,2]
[339287242,1727439044127,-306.0,0.00020904,2]
[339287244,1727439044137,-6531.54368295,0.00020914,2]
[339287246,1727439044146,-272.0,0.0002099,2]
[339287248,1727439044156,-151.0,0.0002099,2]
[339287250,1727439044166,-151.0,0.0002099,2]
[339287252,1727439044175,-151.0,0.0002099,2]
[339287254,1727439044185,-151.0,0.0002099,2]
[339287256,1727439044195,-151.0,0.0002099,2]
[339287258,1727439044204,-151.0,0.0002099,2]
[339287260,1727439044214,-258.68475,0.0002099,2]
[339287262,1727439044223,-151.0,0.0002099,2]
[339287264,1727439044233,-151.0,0.0002099,2]
[339287266,1727439044242,-151.0,0.0002099,2]
[339287268,1727439044252,-151.445429,0.0002099,2]
[339287270,1727439044261,-151.445429,0.0002099,2]
[339287272,1727439044271,-3294.95622686,0.00021,2]
[339287274,1727439044283,-2187.42520509,0.00021,2]
[339287277,1727439044296,-14969.11987005,0.00021,2]
[339287279,1727439044305,-2975.06762685,0.00021,2]
[339287281,1727439044314,-151.0,0.00021,2]
[339287282,1727439044323,-1024.48930037,0.00021,2]
[339287284,1727439044333,-500.0,0.00021,30]
[339287286,1727439044342,-500.0,0.00021,30]
[339287288,1727439044352,-500.0,0.00021,30]
[339287290,1727439044361,-500.0,0.00021,30]
[339287292,1727439044371,-500.0,0.00021,30]
[339287294,1727439044380,-500.0,0.00021,30]
[339287296,1727439044390,-500.0,0.00021,30]
[339287298,1727439044399,-500.0,0.00021,30]
[339287300,1727439044408,-500.0,0.00021,30]
[339287302,1727439044418,-500.0,0.00021,30]
[339287304,1727439044427,-500.0,0.00021,30]
[339287306,1727439044436,-500.0,0.00021,30]
[339287308,1727439044445,-500.0,0.00021,30]
[339287310,1727439044455,-500.0,0.00021,30]
[339287312,1727439044464,-500.0,0.00021,30]
[339287314,1727439044473,-500.0,0.00021,30]
[339287316,1727439044486,-500.0,0.00021,30]
[339287318,1727439044495,-500.0,0.00021,30]
[339287320,1727439044504,-500.0,0.00021,30]
[339287322,1727439044514,-500.0,0.00021,30]
[339287324,1727439044522,-500.0,0.00021,30]
[339287326,1727439044531,-800.0,0.00021,30]
[339287328,1727439044541,-500.0,0.00021,30]
[339287330,1727439044553,-500.0,0.00021,30]
[339287332,1727439044562,-500.0,0.00021,30]
[339287334,1727439044572,-500.0,0.00021,30]
[339287336,1727439044581,-500.0,0.00021,30]
[339287338,1727439044590,-500.0,0.00021,30]
[339287340,1727439044599,-500.0,0.00021,30]
[339287342,1727439044608,-226147.67711596,0.00021,2]
[339287344,1727439044617,-3000.0,0.00021,2]
[339287346,1727439044626,-151.0,0.00021,2]
[339287348,1727439044635,-151.0,0.00021,2]
[339287350,1727439044645,-151.0,0.00021,2]
[339287352,1727439044654,-211.665211,0.00021,2]
[339287354,1727439044663,-310.816321,0.00021,2]
[339287356,1727439044672,-211.665211,0.00021,2]
[339287358,1727439044680,-310.816321,0.00021,2]
[339287360,1727439044690,-151.0,0.00021,2]
[339287362,1727439044699,-172.582341,0.00021,2]
[339287364,1727439044708,-172.582341,0.00021,2]
[339287366,1727439044717,-151.0,0.00021,2]
[339287368,1727439044726,-151.0,0.00021,2]
[339287370,1727439044735,-194.523868,0.00021,2]
[339287372,1727439044744,-194.523868,0.00021,2]
[339287374,1727439044753,-291.916776,0.00021,2]
[339287376,1727439044762,-291.916776,0.00021,2]
[339287378,1727439044773,-158.831207,0.00021,2]
[339287380,1727439044783,-158.831207,0.00021,2]
[339287382,1727439044792,-151.0,0.00021,2]
[339287384,1727439044800,-151.0,0.00021,2]
[339287386,1727439044809,-166.913554,0.00021,2]
[339287388,1727439044818,-166.913554,0.00021,2]
[339287390,1727439044827,-166.913554,0.00021,2]
[339287392,1727439044836,-166.913554,0.00021,2]
[339287394,1727439044846,-181.831058,0.00021,2]
[339287396,1727439044856,-181.831058,0.00021,2]
[339287398,1727439044866,-1975.933074,0.00021,2]
[339287400,1727439044875,-1975.933074,0.00021,2]
[339287402,1727439044884,-1975.933074,0.00021,2]
[339287404,1727439044893,-1975.933074,0.00021,2]
[339287406,1727439044903,-859.198566,0.00021,2]
[339287408,1727439044913,-859.198566,0.00021,2]
[339287410,1727439044924,-151.445429,0.00021,2]
[339287412,1727439044933,-151.445429,0.00021,2]
[339287414,1727439044943,-333.704206,0.00021,2]
[339287416,1727439044953,-333.704206,0.00021,2]
[339287418,1727439044963,-333.704206,0.00021,2]
[339287420,1727439044973,-333.704206,0.00021,2]
[339287422,1727439044982,-500.0,0.00021,30]
[339287424,1727439044991,-500.0,0.00021,30]
[339287426,1727439045000,-500.0,0.00021,30]
[339287428,1727439045009,-276.8824371,0.00021,30]
[339287430,1727439045018,-500.0,0.00021,30]
[339287432,1727439045027,-500.0,0.00021,30]
[339287434,1727439045037,-500.0,0.00021,30]
[339287436,1727439045046,-500.0,0.00021,30]
[339287438,1727439045055,-500.0,0.00021,30]
[339287440,1727439045063,-500.0,0.00021,30]
[339287442,1727439045073,-500.0,0.00021,30]
[339287443,1727439045081,-500.0,0.00021,30]
[339287445,1727439045090,-499.3,0.00021,30]
[339287447,1727439045099,-500.0,0.00021,30]
[339287449,1727439045108,-500.0,0.00021,30]
[339287451,1727439045117,-500.0,0.00021,30]
[339287453,1727439045126,-500.0,0.00021,30]
[339287455,1727439045135,-500.0,0.00021,30]
[339287457,1727439045145,-500.0,0.00021,30]
[339287459,1727439045155,-559.82866608,0.00021,30]
[339287461,1727439045165,-500.0,0.00021,30]
[339287463,1727439045174,-500.0,0.00021,30]
[339287465,1727439045183,-500.0,0.00021,30]
[339287466,1727439045193,-500.0,0.00021,30]
[339287468,1727439045203,-500.0,0.00021,30]
[339287470,1727439045214,-504.39221637,0.00021,30]
[339287472,1727439045224,-500.0,0.00021,30]
[339287474,1727439045234,-500.0,0.00021,30]
[339287476,1727439045244,-500.0,0.00021,30]
[339287478,1727439045253,-939.9144285,0.00021,30]
[339287480,1727439045263,-500.0,0.00021,30]
[339287482,1727439045273,-500.0,0.00021,30]
[339287484,1727439045284,-546.55036028,0.00021,30]
[339287485,1727439045293,-500.0,0.00021,30]
[339287486,1727439045303,-500.0,0.00021,30]
[339287487,1727439045312,-504.42998189,0.00021,30]
[339287488,1727439045322,-500.0,0.00021,30]
[339287489,1727439045332,-154.74467129,0.00021,30]
[339287490,1727439045341,-500.0,0.00021,30]
[339287491,1727439045350,-500.0,0.00021,30]
[339287493,1727439045360,-500.0,0.00021,30]
[339287495,1727439045371,-500.0,0.00021,30]
[339287497,1727439045381,-500.0,0.00021,30]
[339287499,1727439045390,-500.0,0.00021,30]
[339287501,1727439045399,-161.86014978,0.00021,30]
[339287503,1727439045409,-500.0,0.00021,30]
[339287505,1727439045419,-499.3,0.00021,30]
[339287507,1727439045429,-154.74467129,0.00021,30]
[339287509,1727439045438,-3000.0,0.0002101,2]
[339287512,1727439045449,-3000.0,0.0002102,2]
[339287514,1727439045458,-3000.0,0.0002103,2]
[339287516,1727439045468,-3000.0,0.0002104,2]
[339287519,1727439045478,-3000.0,0.0002105,2]
[339287522,1727439045489,-3000.0,0.0002106,2]
[339287525,1727439045499,-3000.0,0.0002107,2]
[339287528,1727439045508,-501.86122269,0.00021073,2]
[339287531,1727439045518,-150.0,0.00021073,2]
[339287534,1727439045528,-3000.0,0.0002108,2]
[339287537,1727439045540,-3000.0,0.0002109,2]
[339287540,1727439045552,-691.89,0.00021095,2]
[339287542,1727439045562,-752.32,0.00021095,2]
[339287544,1727439045571,-842.93,0.00021095,2]
[339287546,1727439045580,-500.0,0.00021095,2]
[339287547,1727439045589,-178.20980002,0.00021095,2]
[339287549,1727439045598,-500.0,0.00021095,2]
[339287551,1727439045606,-1303.73,0.00021095,2]
[339287553,1727439045616,-500.0,0.00021095,2]
[339287564,1727439045625,-1525.07,0.00021095,2]
[339287566,1727439045727,-187.06272016,0.00021095,2]
[339287568,1727439045736,-500.0,0.00021095,2]
[339287570,1727439045746,-200.0,0.00021095,2]
[339287572,1727439045755,-949.71,0.00021095,2]
[339287574,1727439045764,-2111.72,0.00021095,2]
[339287576,1727439045773,-811.11,0.00021095,2]
[339287578,1727439045782,-500.0,0.00021095,2]
[339287581,1727439045793,-500.0,0.00021095,2]
[339287582,1727439045802,-1359.94237913,0.00021095,2]
[339287606,1727439046005,-20.87324422,0.00021095,2]
[339288555,1727439567297,250.0,0.00014081,2]
[339288558,1727439668188,213.5753653,0.00013976,2]
[339288560,1727439939654,318.0,0.00014,2]
[339288561,1727439958157,-151.28511611,0.00014119,2]
[339288563,1727439993544,250.0,0.00013724,2]
[339288565,1727440032098,-98.71488389,0.00014119,2]
[339288566,1727440032123,-250.0,0.00014158,2]
[339288567,1727440032146,-250.0,0.00014197,2]
[339288568,1727440032169,-250.0,0.00014235,2]
[339288569,1727440032194,-250.0,0.00014274,2]
[339288570,1727440032216,-250.0,0.00014313,2]
[339288571,1727440032242,-250.0,0.00014351,2]
[339288572,1727440032265,-250.0,0.0001439,2]
[339288573,1727440032288,-250.0,0.00014428,2]
[339288574,1727440032312,-250.0,0.00014467,2]
[339288575,1727440032335,-250.0,0.00014506,2]
[339288576,1727440032357,-250.0,0.00014544,2]
[339288577,1727440032380,-250.0,0.00014583,2]
[339288578,1727440032404,-250.0,0.00014622,2]
[339288579,1727440032428,-250.0,0.0001466,2]
[339288580,1727440032450,-250.0,0.00014699,2]
[339288581,1727440032650,-250.0,0.00014738,2]
[339288582,1727440032673,-250.0,0.00014776,2]
[339288583,1727440032697,-250.0,0.00014815,2]
[339288584,1727440032720,-192.543939,0.00014824,2]
[339288585,1727440032742,-192.543939,0.00014828,2]
[339288586,1727440032763,-192.543939,0.00014832,2]
[339288587,1727440032784,-192.543939,0.00014836,2]
[339288588,1727440032805,-300.0,0.00014839,2]
[339288589,1727440032826,-196.77496632,0.00014839,2]
[339288590,1727440049644,4559.42,0.00014111,2]
[339288592,1727440075706,1206.7062683,0.00013844,2]
[339288593,1727440117682,24900.0,0.00013941,2]
[339288594,1727440136361,250.0,0.00013837,2]
[339288595,1727440136604,250.0,0.00013875,2]
[339288596,1727440136862,250.0,0.00013913,2]
[339288597,1727440137097,250.0,0.00013951,2]
[339288598,1727440137368,250.0,0.00013989,2]
[339288599,1727440137606,250.0,0.00014027,2]
[339288600,1727440137862,250.0,0.00014065,2]
[339288601,1727440138085,250.0,0.00014103,2]
[339288602,1727440148171,-181.4113056,0.00014141,2]
[339288603,1727440151120,-68.5886944,0.00014141,2]
[339288604,1727440151142,-250.0,0.00014179,2]
[339288605,1727440151164,-250.0,0.00014217,2]
[339288606,1727440151186,-250.0,0.00014255,2]
[339288607,1727440151209,-250.0,0.00014293,2]
[339288608,1727440151231,-250.0,0.0001433,2]
[339288609,1727440151252,-250.0,0.00014368,2]
[339288610,1727440151274,-250.0,0.00014406,2]
[339288611,1727440151296,-250.0,0.00014444,2]
[339288612,1727440151318,-250.0,0.00014482,2]
[339288613,1727440151341,-250.0,0.0001452,2]
[339288614,1727440151363,-250.0,0.00014558,2]
[339288615,1727440152086,-181.4113056,0.00014839,2]
[339288616,1727440161099,-11.1326334,0.00014839,2]
[339288617,1727440161124,-192.543939,0.00014843,2]
[339288618,1727440161151,-192.543939,0.00014847,2]
[339288619,1727440161172,-192.543939,0.00014851,2]
[339288620,1727440161194,-192.543939,0.00014855,2]
[339288621,1727440161216,-192.543939,0.00014859,2]
[339288622,1727440161240,-192.543939,0.00014863,2]
[339288623,1727440161263,-192.543939,0.00014867,2]
[339288624,1727440161284,-192.543939,0.00014871,2]
[339288625,1727440161305,-192.543939,0.00014874,2]
[339288626,1727440161327,-192.543939,0.00014878,2]
[339288627,1727440161353,-192.543939,0.00014882,2]
[339288628,1727440161375,-192.543939,0.00014886,2]
[339288629,1727440161396,-192.543939,0.0001489,2]
[339288630,1727440161419,-300.0,0.0001489,2]
[339288631,1727440161440,-192.543939,0.00014894,2]
[339288632,1727440161463,-192.543939,0.00014898,2]
[339288633,1727440161485,-1897.49886702,0.00015,7]
[339288634,1727440161508,-167.021309,0.00015068,2]
[339288635,1727440161533,-1318.31112315,0.00015133,2]
[339288636,1727440161555,-300.0,0.00015231,2]
[339288637,1727440161579,-500.0,0.00015232,2]
[339288638,1727440161602,-500.0,0.00015232,2]
[339288639,1727440161626,-569.03974019,0.00015232,2]
[339288640,1727440161649,-569.03974019,0.00015232,2]
[339288641,1727440161673,-500.0,0.00015232,2]
[339288642,1727440161695,-218.38929904,0.00015232,2]
[339288643,1727440161718,-500.0,0.00015232,2]
[339288644,1727440161744,-569.03974019,0.00015232,2]
[339288645,1727440161767,-500.0,0.00015232,2]
[339288646,1727440161792,-569.03974019,0.00015232,2]
[339288647,1727440161817,-569.03974019,0.00015232,2]
[339288648,1727440161838,-500.0,0.00015232,2]
[339288649,1727440161862,-500.0,0.00015232,2]
[339288650,1727440161885,-569.03974019,0.00015232,2]
[339288651,1727440161908,-394.12403797,0.00015232,2]
[339288652,1727440161933,-569.03974019,0.00015232,2]
[339288653,1727440161956,-569.03974019,0.00015232,2]
[339288654,1727440161978,-569.03974019,0.00015232,2]
[339288655,1727440162000,-569.03974019,0.00015232,2]
[339288656,1727440162022,-569.03974019,0.00015232,2]
[339288657,1727440162045,-569.03974019,0.00015232,2]
[339288658,1727440162071,-569.03974019,0.00015232,2]
[339288659,1727440162094,-569.03974019,0.00015232,2]
[339288660,1727440162118,-569.03974019,0.00015232,2]
[339288661,1727440162143,-569.03974019,0.00015232,2]
[339288662,1727440162174,-569.03974019,0.00015232,2]
[339288663,1727440162206,-569.03974019,0.00015232,2]
[339288664,1727440162230,-569.03974019,0.00015232,2]
[339288665,1727440162254,-240.58763876,0.00015232,2]
[339288666,1727440164522,190.22983349,0.00013916,2]
[339288667,1727440164548,93.62192751,0.00013916,2]
[339288673,1727440200855,159.86914643,0.000147,2]
[339288674,1727440214824,5492.43073649,0.00014244,2]
[339288679,1727440231942,-1117.93305651,0.00014244,2]
[339288680,1727440231952,-14305.5455545,0.00014347,2]
[339288681,1727440231963,-3145.97412352,0.00014929,2]
[339288682,1727440231976,-3464.38966948,0.00014929,2]
[339288683,1727440231986,-300.0,0.00015231,2]
[339288684,1727440231999,-300.0,0.00015231,2]
[339288685,1727440232010,-500.0,0.00015234,2]
[339288686,1727440232019,-500.0,0.00015234,2]
[339288687,1727440232029,-206.73311164,0.00015234,2]
[339288688,1727440232039,-422.18688706,0.00015234,2]
[339288689,1727440232050,-500.0,0.00015234,2]
[339288690,1727440232059,-226.56750116,0.00015234,2]
[339288691,1727440232069,-500.0,0.00015234,2]
[339288692,1727440232078,-500.0,0.00015234,2]
[339288693,1727440232088,-497.12845018,0.00015234,2]
[339288694,1727440232097,-529.27726923,0.00015234,2]
[339288695,1727440232110,-500.0,0.00015234,2]
[339288696,1727440232120,-500.0,0.00015234,2]
[339288697,1727440232132,-500.0,0.00015234,2]
[339288698,1727440232142,-624.96183874,0.00015234,2]
[339288699,1727440232152,-500.0,0.00015234,2]
[339288700,1727440232162,-500.0,0.00015234,2]
[339288701,1727440232172,-1337.26495056,0.00015234,2]
[339288702,1727440232181,-39431.55581027,0.00015235,2]
[339288871,1727440240165,-377.12489311,0.00015231,2]
[339288873,1727440240175,-576.93020051,0.00015231,2]
[339288875,1727440240186,-576.93020051,0.00015231,2]
[339288877,1727440240196,-576.93020051,0.00015231,2]
[339288879,1727440240206,-576.93020051,0.00015231,2]
[339288881,1727440240216,-576.93020051,0.00015231,2]
[339288883,1727440240227,-576.93020051,0.00015231,2]
[339288885,1727440240236,-576.93020051,0.00015231,2]
[339288887,1727440240246,-576.93020051,0.00015231,2]
[339288889,1727440240255,-576.93020051,0.00015231,2]
[339288891,1727440240265,-576.93020051,0.00015231,2]
[339288893,1727440240274,-576.93020051,0.00015231,2]
[339288895,1727440240284,-576.93020051,0.00015231,2]
[339288897,1727440240294,-576.93020051,0.00015231,2]
[339288899,1727440240303,-576.93020051,0.00015231,2]